bitfinex-derivatives/quotes_ETHF0:USTF0_20250115
["timestamp","ask_amount","ask_price","bid_price","bid_amount"]
[1736910481617,0.9703,3216.3,3216.0,0.453]
[1736910481618,4.54046492,3216.3,3216.2,40.8]
[1736910483729,4.22941492,3216.3,3216.2,40.8]
[1736910485929,4.54046492,3216.3,3216.2,40.8]
[1736910487137,4.22941492,3216.3,3216.2,40.8]
[1736910487336,3.2078,3216.5,3216.2,40.8]
[1736910487529,3.2078,3216.5,3216.4,2.76067006]
[1736910489624,3.2078,3216.5,3216.4,0.31104]
[1736910489831,3.51884,3216.5,3216.3,1.76315]
[1736910490022,0.31105,3216.4,3216.2,41.11106]
[1736910490436,3.3632513,3216.3,3216.2,41.11106]
[1736910490730,3.51884,3216.5,3216.2,40.8]
[1736910490929,3.26127229,3216.4,3216.3,0.31104]
[1736910491331,0.4591,3216.4,3216.3,0.31104]
[1736910491629,4.21117229,3216.4,3216.3,0.31104]
[1736910491831,3.72037229,3216.4,3216.3,0.31104]
[1736910492220,3.72037229,3216.4,3216.2,40.8]
[1736910492531,0.31105,3216.3,3216.2,40.8]
[1736910492731,0.80185,3216.3,3216.2,40.8]
[1736910492922,4.20972144,3216.3,3216.2,40.8]
[1736910500331,3.40787144,3216.3,3216.2,41.11106]
[1736910501132,3.44132808,3216.4,3216.3,0.31105]
[1736910501435,3.2078,3216.5,3216.4,0.31104]
[1736910501829,6.64912808,3216.5,3216.4,0.31104]
[1736910502520,6.64912808,3216.5,3216.2,40.8]
[1736910502927,6.64912808,3216.5,3216.4,0.31104]
[1736910503433,6.64912808,3216.5,3216.3,0.31105]
[1736910503634,6.64912808,3216.5,3216.4,0.31104]
[1736910504131,3.73363006,3217.1,3216.4,0.31104]
[1736910504132,3.2078,3217.0,3216.4,2.44963006]
[1736910504429,3.2078,3217.0,3216.9,0.31099]
[1736910504831,6.70703896,3217.0,3216.9,0.31099]
[1736910505031,3.49923896,3217.0,3216.9,0.31099]
[1736910505235,0.4573,3217.7,3216.8,3.2078]
[1736910505438,0.4573,3217.7,3217.6,0.31093]
[1736910505637,0.4573,3217.7,3217.2,2.44963006]
[1736910505832,3.48800726,3217.7,3217.3,40.8]
[1736910506139,0.31095,3217.4,3217.3,40.8]
[1736910506338,0.31098,3217.1,3216.8,3.2078]
[1736910506634,0.4762,3217.0,3216.8,3.5188]
[1736910506834,3.74581702,3217.0,3216.9,40.8]
[1736910508738,0.31094,3217.5,3216.9,43.24963006]
[1736910508937,1.4404,3217.6,3216.9,43.24963006]
[1736910509132,3.57750588,3217.4,3217.2,0.31096]
[1736910509534,0.9778,3217.6,3216.9,43.24963006]
[1736910509846,3.55059238,3217.3,3216.9,43.24963006]
[1736910510043,3.55059238,3217.3,3217.2,0.31096]
[1736910510237,1.28873,3217.6,3216.9,43.24963006]
[1736910510441,3.55059238,3217.3,3217.2,0.31096]
[1736910510740,3.55059238,3217.4,3217.2,0.31096]
[1736910510943,0.31094,3217.5,3217.2,0.31096]
[1736910511148,3.45719413,3217.3,3217.2,0.31096]
[1736910511439,3.45719413,3217.4,3217.2,0.31096]
[1736910511740,0.31094,3217.5,3217.2,0.31096]
[1736910511940,3.85476376,3217.4,3217.1,0.31097]
[1736910512441,0.31095,3217.4,3217.1,0.31097]
[1736910512741,3.54381376,3217.3,3217.1,0.31097]
[1736910512929,0.31097,3217.2,3216.9,41.11099]
[1736910513345,3.33076482,3217.1,3216.9,40.8]
[1736910513544,3.33076482,3217.1,3217.0,0.31098]
[1736910513843,3.33076482,3217.2,3217.0,0.31098]
[1736910514041,3.74838598,3217.3,3217.0,0.31098]
[1736910514247,0.31096,3217.3,3217.0,0.31098]
[1736910514437,3.43742598,3217.2,3217.0,0.31098]
[1736910514745,3.74839598,3217.2,3216.9,41.11099]
[1736910515041,0.31097,3217.2,3216.9,41.11099]
[1736910515441,3.52939895,3217.1,3216.9,41.11099]
[1736910518744,3.84037895,3217.1,3216.9,41.11099]
[1736910519245,0.31098,3217.1,3216.9,41.11099]
[1736910519444,3.50878703,3217.0,3216.9,41.11099]
[1736910521444,3.81976703,3217.0,3216.9,40.8]
[1736910523248,0.31102,3216.6,3216.3,3.2078]
[1736910523442,1.4572,3216.9,3216.3,3.2078]
[1736910523648,0.31104,3216.4,3216.3,3.2078]
[1736910524049,3.77877114,3216.4,3216.3,3.2078]
[1736910524350,3.77877114,3216.4,3216.3,44.0078]
[1736910528453,3.77877114,3216.4,3216.3,40.8]
[1736910528753,3.90683006,3216.9,3216.3,40.8]
[1736910528754,1.4572,3216.9,3216.3,40.8]
[1736910528944,0.04959772,3216.8,3216.5,0.31103]
[1736910529145,3.6491683,3216.8,3216.5,0.31103]
[1736910529350,3.59957058,3216.8,3216.5,0.31103]
[1736910529955,3.28856058,3216.8,3216.5,0.31103]
[1736910530150,0.31102,3216.7,3216.3,43.24963006]
[1736910530357,0.31102,3216.7,3216.4,0.31103]
[1736910530558,3.57223436,3216.6,3216.4,0.31103]
[1736910532752,3.88325436,3216.6,3216.4,0.31103]
[1736910533053,3.88325436,3216.6,3216.5,0.5007]
[1736910533249,3.57223436,3216.6,3216.5,0.81173]
[1736910533449,3.2078,3216.9,3216.5,0.5007]
[1736910533651,3.2078,3216.9,3216.7,0.311]
[1736910533850,3.42851389,3216.8,3216.7,0.31101]
[1736910535950,3.73951389,3216.8,3216.7,0.31101]
[1736910536149,0.31101,3216.7,3216.6,1.26252]
[1736910536358,3.42851389,3216.8,3216.6,1.26252]
[1736910536546,3.73952389,3216.8,3216.6,1.26252]
[1736910537760,3.42851389,3216.8,3216.6,0.9515]
[1736910537961,3.42851389,3216.8,3216.7,0.31101]
[1736910538661,3.73951389,3216.8,3216.7,0.31101]
[1736910538960,3.42851389,3216.8,3216.7,0.31101]
[1736910539461,3.73951389,3216.8,3216.7,0.31101]
[1736910539662,3.42851389,3216.8,3216.7,0.31101]
[1736910541060,0.31097,3217.2,3217.0,0.31098]
[1736910541262,0.31096,3217.3,3217.1,0.31097]
[1736910541460,1.75865,3217.4,3217.2,0.31096]
[1736910541658,0.31097,3217.2,3217.0,0.31098]
[1736910542056,3.4501442,3217.1,3216.6,6.60893006]
[1736910542259,3.4501442,3217.1,3217.0,0.31098]
[1736910542454,3.4501442,3217.2,3216.9,2.44963006]
[1736910542763,3.2078,3217.8,3217.0,3.6694]
[1736910543061,3.2078,3217.8,3217.7,0.31092]
[1736910543263,3.2078,3217.8,3217.2,2.44963006]
[1736910543454,3.2078,3217.4,3216.6,4.1593]
[1736910543658,0.31099,3217.0,3216.8,0.311]
[1736910543955,0.31099,3217.0,3216.6,4.1593]
[1736910543956,0.31101,3216.8,3216.7,40.8]
[1736910544759,3.64111689,3216.9,3216.7,41.11101]
[1736910545265,0.311,3216.9,3216.7,41.11101]
[1736910545464,3.50574914,3216.8,3216.7,41.11101]
[1736910545661,3.50574914,3216.8,3216.7,43.56064006]
[1736910545963,0.31091,3217.8,3216.9,0.77749]
[1736910546162,0.4587,3217.6,3217.5,0.31093]
[1736910546362,3.45740797,3217.6,3217.5,0.31093]
[1736910546557,3.2078,3217.9,3217.3,1.4175]
[1736910546763,3.45740797,3217.8,3217.7,0.31091]
[1736910547060,3.5187,3217.9,3217.7,0.31091]
[1736910547261,3.54328157,3217.8,3217.7,0.31091]
[1736910547566,3.85419157,3217.8,3217.6,0.31092]
[1736910547764,3.85419157,3217.8,3217.5,40.8]
[1736910547765,0.31093,3217.6,3217.5,40.8]
[1736910548167,0.31098,3217.1,3216.8,0.311]
[1736910548371,0.31098,3217.1,3216.9,0.31099]
[1736910548575,3.82600656,3217.0,3216.9,0.31099]
[1736910548863,3.82600656,3217.0,3216.8,40.8]
[1736910549070,0.4631,3216.9,3216.8,41.111]
[1736910549465,4.04670373,3216.9,3216.8,41.111]
[1736910549767,4.04670373,3216.9,3216.8,40.8]
[1736910549965,4.04670373,3216.9,3216.8,41.111]
[1736910552371,3.58360373,3216.9,3216.8,41.111]
[1736910552667,3.2078,3217.4,3216.8,41.111]
[1736910552668,0.462,3217.3,3216.8,42.2203]
[1736910552876,3.34237402,3217.3,3217.2,0.31096]
[1736910553069,0.4918,3217.5,3217.1,3.2078]
[1736910553272,0.4918,3217.5,3217.4,0.31095]
[1736910553568,0.4918,3217.5,3217.4,41.11095]
[1736910554268,0.4918,3217.5,3217.4,40.8]
[1736910554867,4.50938162,3217.5,3217.4,40.8]
[1736910555068,0.31096,3217.3,3217.1,3.51877]
[1736910555571,4.0301748,3217.2,3217.1,3.51877]
[1736910556069,4.0301748,3217.2,3217.1,44.31877]
[1736910558569,0.9601,3217.5,3217.1,44.0078]
[1736910558770,0.31095,3217.4,3217.3,0.31095]
[1736910559070,0.4918,3217.5,3217.4,0.31095]
[1736910562077,0.4866,3217.8,3217.2,0.31096]
[1736910562272,0.4866,3217.8,3217.3,0.4928]
[1736910562473,3.2078,3217.9,3217.8,0.31091]
[1736910562965,6.88371506,3217.9,3217.6,0.31092]
[1736910563380,0.481,3217.8,3217.3,2.94243006]
[1736910563673,0.481,3217.8,3217.7,0.31092]
[1736910563976,4.0773347,3217.8,3217.7,0.31092]
[1736910564177,3.5963347,3217.8,3217.7,0.31092]
[1736910567276,3.5963347,3217.8,3217.7,3.51872]
[1736910567484,0.489,3218.0,3217.7,3.2078]
[1736910567676,0.489,3218.0,3217.9,0.3109]
[1736910569882,0.4646,3218.1,3218.0,0.31089]
[1736910570277,0.4646,3218.1,3218.0,41.11089]
[1736910573989,0.4646,3218.1,3218.0,40.8]
[1736910574384,0.4646,3218.1,3218.0,41.11089]
[1736910576090,3.6641,3218.4,3218.3,0.31086]
[1736910576387,3.28302659,3218.3,3218.2,0.31087]
[1736910577497,3.28302659,3218.3,3218.1,0.4983]
[1736910577692,3.28302659,3218.3,3218.1,0.80917]
[1736910579497,3.28536293,3218.3,3218.1,0.80917]
[1736910579697,0.00233634,3218.3,3218.1,0.80917]
[1736910579897,0.00233634,3218.3,3218.1,0.4983]
[1736910580088,0.00233634,3218.3,3218.1,0.80917]
[1736910580295,0.00233634,3218.3,3218.1,0.4983]
[1736910580599,0.00233634,3218.3,3218.0,40.8]
[1736910580600,0.31088,3218.1,3218.0,40.8]
[1736910581000,0.4975,3218.2,3218.0,40.8]
[1736910581300,0.80837,3218.2,3218.0,40.8]
[1736910582394,0.80837,3218.2,3218.0,41.11088]
[1736910582604,0.4975,3218.2,3218.1,0.31088]
[1736910582807,0.4975,3218.2,3218.0,41.11088]
[1736910583903,0.4975,3218.2,3218.0,40.8]
[1736910584299,0.4975,3218.2,3218.0,41.11088]
[1736910585001,0.80837,3218.2,3218.0,41.11088]
[1736910585399,0.4975,3218.2,3218.0,40.8]
[1736910585602,0.4975,3218.2,3218.0,41.11088]
[1736910586902,0.80837,3218.2,3218.0,41.11088]
[1736910587095,0.4975,3218.2,3218.1,0.31088]
[1736910587404,0.80837,3218.2,3218.0,41.11088]
[1736910588303,0.4975,3218.2,3218.0,40.8]
[1736910588605,0.4975,3218.2,3218.0,41.11088]
[1736910591807,0.80837,3218.2,3218.0,41.11088]
[1736910593999,0.4975,3218.2,3218.0,41.11088]
[1736910594201,0.4975,3218.2,3218.1,0.31088]
[1736910594402,0.4975,3218.2,3218.0,41.11088]
[1736910595204,0.4975,3218.2,3218.1,0.31088]
[1736910600608,0.00233634,3218.3,3218.2,0.31087]
[1736910600808,0.00233634,3218.3,3218.2,5.96830006]
[1736910601808,0.00233634,3218.3,3218.2,3.51867]
[1736910602608,0.31319634,3218.3,3218.2,3.51867]
[1736910602807,0.31319634,3218.3,3218.2,3.2078]
[1736910603208,0.00233634,3218.3,3218.2,3.51867]
[1736910603410,1.25399634,3218.3,3218.2,3.2078]
[1736910603614,0.94313634,3218.3,3218.2,3.2078]
[1736910603824,0.94313634,3218.3,3218.2,3.51867]
[1736910606717,0.94313634,3218.3,3218.2,3.2078]
[1736910606917,0.31087,3218.2,3218.0,40.8]
[1736910607119,0.31087,3218.2,3218.0,41.11088]
[1736910607314,0.31087,3218.2,3218.1,0.31088]
[1736910607520,1.73679634,3218.3,3218.1,0.31087]
[1736910611018,1.42593634,3218.3,3218.0,40.8]
[1736910611213,1.42593634,3218.3,3218.2,0.31087]
[1736910611427,0.94313634,3218.3,3218.2,0.31087]
[1736910613217,0.94313634,3218.3,3218.0,40.8]
[1736910613424,0.31088,3218.1,3218.0,40.8]
[1736910614513,3.54415419,3218.1,3217.4,3.51874]
[1736910614715,5.99378425,3218.1,3217.4,3.2078]
[1736910614915,0.31094,3217.5,3217.4,3.2078]
[1736910615522,0.31094,3217.5,3217.4,44.0078]
[1736910616732,0.31094,3217.5,3217.4,40.8]
[1736910616922,0.31093,3217.6,3217.4,40.8]
[1736910617123,0.31094,3217.5,3217.4,40.8]
[1736910618026,3.5505323,3217.6,3217.4,40.8]
[1736910618824,0.31094,3217.5,3217.4,40.8]
[1736910619025,3.2396023,3217.6,3217.4,40.8]
[1736910619333,3.5505323,3217.6,3217.4,40.8]
[1736910619927,3.2396023,3217.6,3217.4,41.11094]
[1736910620232,2.997,3217.8,3217.7,0.31092]
[1736910620430,2.997,3217.8,3217.7,2.76055006]
[1736910620930,2.997,3217.8,3217.7,43.56055006]
[1736910621327,2.997,3217.8,3217.7,44.06245006]
[1736910623031,0.00233634,3218.3,3218.2,0.31087]
[1736910623232,3.6681,3219.2,3218.2,6.93843006]
[1736910623438,3.6681,3219.2,3218.6,3.2078]
[1736910623733,3.6681,3219.2,3219.1,0.31078]
[1736910624131,3.6681,3219.2,3218.8,2.44963006]
[1736910624326,3.97887,3219.2,3219.0,0.31079]
[1736910624828,3.6681,3219.2,3219.0,0.31079]
[1736910625232,3.6681,3219.2,3218.6,3.2078]
[1736910625530,0.3108,3219.0,3218.6,3.51862]
[1736910625731,0.3108,3219.0,3218.7,0.31081]
[1736910625933,0.3108,3219.0,3218.6,3.2078]
[1736910625934,3.24445326,3218.9,3218.8,0.31081]
[1736910626433,3.24445326,3218.9,3218.8,41.11081]
[1736910628835,3.55525326,3218.9,3218.8,40.8]
[1736910629131,3.48731852,3219.0,3218.6,3.2078]
[1736910629339,0.4825,3218.8,3218.6,3.51863]
[1736910629636,0.4825,3218.8,3218.6,44.31863]
[1736910629824,3.43609566,3218.7,3218.6,44.31863]
[1736910631728,0.4825,3218.8,3218.7,0.31082]
[1736910631924,4.47748,3219.2,3219.0,0.31079]
[1736910632128,0.4686,3219.1,3219.0,0.31079]
[1736910632328,3.86458491,3219.1,3218.9,0.3108]
[1736910632829,0.3108,3219.0,3218.7,0.31082]
[1736910633031,3.86458491,3219.1,3218.6,44.0078]
[1736910633234,0.31082,3218.7,3218.6,40.8]
[1736910633433,2.997,3218.7,3218.2,3.2078]
[1736910633629,6.57331204,3218.7,3218.5,2.44963006]
[1736910633936,2.997,3218.7,3218.6,41.11083]
[1736910634232,2.997,3218.7,3218.6,41.57653]
[1736910634431,2.997,3218.7,3218.6,41.11083]
[1736910635227,6.56562401,3218.7,3218.6,40.8]
[1736910635429,6.56562401,3218.7,3218.6,41.11083]
[1736910635626,6.56562401,3218.7,3218.6,40.8]
[1736910635828,2.997,3218.7,3218.6,40.8]
[1736910636124,2.997,3218.7,3218.6,41.11083]
[1736910637735,0.79529,3219.1,3218.7,0.31081]
[1736910637931,0.31079,3219.0,3218.7,0.31081]
[1736910638138,3.68232405,3219.0,3218.6,40.8]
[1736910638434,3.68232405,3219.0,3218.8,0.31081]
[1736910639333,3.37153405,3219.0,3218.6,40.8]
[1736910639538,3.37153405,3219.0,3218.9,0.3108]
[1736910639939,3.6681,3219.2,3219.1,0.31078]
[1736910640141,0.4603,3219.2,3219.1,0.31078]
[1736910640348,0.4894,3219.5,3219.0,3.2078]
[1736910640642,0.4894,3219.5,3219.4,0.31075]
[1736910641244,3.6712,3219.8,3219.1,2.44963006]
[1736910641547,3.6712,3219.8,3219.7,0.31072]
[1736910641846,7.24162402,3219.8,3219.7,0.31072]
[1736910642241,3.2078,3219.8,3219.7,0.31072]
[1736910643041,3.2078,3219.8,3219.7,41.11072]
[1736910644050,0.4894,3220.1,3219.7,43.24963006]
[1736910644244,0.4894,3220.1,3220.0,0.31069]
[1736910644450,0.4894,3220.1,3219.7,43.24963006]
[1736910644650,0.4966,3220.3,3220.1,0.31068]
[1736910644951,0.4966,3220.3,3220.2,0.31067]
[1736910645847,0.472,3220.5,3220.3,0.31066]
[1736910646249,3.26985506,3220.4,3220.3,0.31066]
[1736910647047,3.2078,3220.7,3220.3,2.44963006]
[1736910647246,0.4662,3220.8,3220.6,0.31063]
[1736910647647,3.27871551,3220.7,3220.6,0.31063]
[1736910649148,0.4662,3220.8,3220.4,0.31066]
[1736910649447,0.4662,3220.8,3220.7,0.31063]
[1736910649654,0.002,3221.0,3220.6,2.44963006]
[1736910649949,0.4911,3221.6,3221.5,0.31055]
[1736910650447,0.4911,3221.6,3221.5,41.11055]
[1736910650843,0.4612,3222.1,3221.9,0.3105]
[1736910651048,0.9523,3222.1,3222.0,0.3105]
[1736910651245,0.9523,3222.1,3221.9,0.31051]
[1736910651444,0.9523,3222.1,3221.7,2.44963006]
[1736910651644,0.9523,3222.1,3222.0,0.3105]
[1736910651841,0.4911,3222.1,3222.0,0.3105]
[1736910652650,0.4911,3222.1,3221.9,0.31051]
[1736910653352,0.4911,3222.1,3221.7,2.44963006]
[1736910653646,0.4911,3222.1,3221.9,0.31051]
[1736910655948,3.2078,3222.2,3222.0,2.44963006]
[1736910656159,0.4738,3222.5,3222.1,0.31049]
[1736910656548,3.29895294,3222.4,3222.2,0.31047]
[1736910656756,3.29895294,3222.4,3222.1,0.31049]
[1736910657154,3.29895294,3222.4,3222.0,2.44963006]
[1736910657456,3.29895294,3222.4,3222.1,0.31049]
[1736910658258,3.29895294,3222.4,3222.3,3.51827]
[1736910658558,0.31042,3222.9,3222.4,0.31046]
[1736910659055,0.31042,3222.9,3222.5,40.8]
[1736910659452,3.678,3223.0,3222.5,40.8]
[1736910659651,0.31046,3222.5,3222.1,0.4766]
[1736910660158,0.4741,3222.7,3222.1,41.2766]
[1736910660359,0.4741,3222.7,3222.3,2.44963006]
[1736910660560,0.4741,3222.7,3222.4,0.31046]
[1736910661058,0.4741,3222.7,3222.3,2.76010006]
[1736910661059,0.78453,3222.7,3222.3,2.76010006]
[1736910661453,0.4741,3222.7,3222.3,5.65743006]
[1736910661654,0.4741,3222.7,3222.4,0.31046]
[1736910662164,0.4741,3222.7,3222.3,5.65743006]
[1736910662360,0.4741,3222.7,3222.5,0.31045]
[1736910662962,0.4741,3222.7,3222.4,0.31046]
[1736910663263,0.4741,3222.7,3222.3,5.65743006]
[1736910663558,0.4741,3222.7,3222.4,0.31046]
[1736910663966,0.4741,3222.7,3222.6,2.44963006]
[1736910664149,0.4702,3223.0,3222.6,2.44963006]
[1736910664356,0.4693,3223.3,3222.9,5.65743006]
[1736910664658,0.77968,3223.3,3222.9,5.65743006]
[1736910664858,0.77968,3223.3,3222.9,5.96784006]
[1736910665061,0.77968,3223.3,3223.0,40.8]
[1736910665263,0.77968,3223.3,3223.1,0.31039]
[1736910665264,0.4693,3223.3,3223.1,0.31039]
[1736910666458,0.4693,3223.3,3223.2,2.44963006]
[1736910666663,0.24611249,3223.9,3223.2,2.44963006]
[1736910666664,3.2078,3223.9,3223.2,2.44963006]
[1736910666852,0.4704,3224.0,3223.6,5.65743006]
[1736910667056,0.4704,3224.0,3223.9,2.75995006]
[1736910667561,0.4704,3224.0,3223.9,2.44963006]
[1736910668261,0.4704,3224.0,3223.9,43.24963006]
[1736910669066,0.31021,3225.1,3224.6,0.31025]
[1736910669263,0.4704,3225.1,3224.7,2.75986006]
[1736910669459,0.31022,3225.0,3224.7,2.44963006]
[1736910669765,0.31021,3225.0,3224.7,2.44963006]
[1736910669963,0.31022,3224.9,3224.5,3.51806]
[1736910670160,3.58300472,3224.9,3224.5,3.2078]
[1736910670477,0.9669,3225.1,3224.5,3.2078]
[1736910670478,0.31023,3224.8,3224.5,3.2078]
[1736910670671,0.4931,3225.0,3224.5,3.2078]
[1736910670964,0.31023,3224.9,3224.5,3.2078]
[1736910671177,0.31022,3224.9,3224.5,3.2078]
[1736910671353,3.42187479,3224.8,3224.5,3.2078]
[1736910671760,3.73210479,3224.8,3224.5,3.2078]
[1736910671960,3.42187479,3224.8,3224.5,3.2078]
[1736910672164,3.42187479,3224.8,3224.6,0.31025]
[1736910673661,3.42187479,3224.8,3224.5,3.51805]
[1736910673959,0.31025,3224.6,3224.5,3.2078]
[1736910674161,0.9669,3225.1,3224.5,3.2078]
[1736910674467,3.72782804,3224.8,3224.5,3.2078]
[1736910674768,1.27711,3225.1,3224.8,0.31023]
[1736910675064,3.48322528,3225.0,3224.7,2.75987006]
[1736910675266,3.48322528,3225.0,3224.7,2.44963006]
[1736910675464,3.79344528,3225.0,3224.7,2.44963006]
[1736910675866,3.2078,3225.3,3224.7,2.44963006]
[1736910675867,3.2078,3225.3,3225.1,0.31019]
[1736910676063,3.2078,3225.3,3225.0,2.75983006]
[1736910676366,3.2078,3225.3,3225.1,40.8]
[1736910676565,3.38019698,3225.2,3224.7,2.44963006]
[1736910676766,0.31021,3225.1,3224.7,2.75987006]
[1736910676972,0.31021,3225.1,3224.8,40.8]
[1736910677268,3.38019698,3225.0,3224.8,40.8]
[1736910677860,3.2078,3225.3,3224.8,40.8]
[1736910677861,0.31021,3225.1,3224.8,40.8]
[1736910678163,0.31021,3225.1,3224.5,3.2078]
[1736910678164,0.31022,3224.9,3224.6,0.31025]
[1736910678369,0.4839,3224.8,3224.5,3.51806]
[1736910678566,1.29503,3224.8,3224.5,3.2078]
[1736910678763,0.9848,3224.8,3224.6,40.8]
[1736910679263,1.29503,3224.8,3224.6,40.8]
[1736910679774,3.35344482,3224.7,3224.6,40.8]
[1736910680374,3.66368482,3224.7,3224.6,40.8]
[1736910680669,0.31027,3224.4,3224.0,4.149]
[1736910680970,0.4797,3224.6,3224.0,3.2078]
[1736910681169,0.31029,3224.2,3224.1,40.8]
[1736910681467,3.80983845,3224.2,3224.1,40.8]
[1736910681671,4.28783845,3224.2,3224.1,40.8]
[1736910684062,4.33746257,3224.2,3224.1,40.8]
[1736910685771,4.28783845,3224.2,3224.1,40.8]
[1736910686677,3.97754845,3224.2,3224.1,40.8]
[1736910686868,4.28783845,3224.2,3224.1,40.8]
[1736910695372,4.76003845,3224.2,3224.1,40.8]
[1736910696474,4.80965827,3224.2,3224.1,40.8]
[1736910697077,4.76003845,3224.2,3224.1,40.8]
[1736910697281,4.80965827,3224.2,3224.1,40.8]
[1736910697479,4.8096582,3224.2,3224.1,40.8]
[1736910697673,4.76003845,3224.2,3224.1,40.8]
[1736910697882,4.49936511,3224.2,3223.2,2.94803006]
[1736910698079,0.31038,3223.3,3223.2,2.94803006]
[1736910698281,0.31038,3223.3,3223.2,43.74803006]
[1736910698782,0.31038,3223.3,3223.2,41.2984]
[1736910699076,0.31038,3223.3,3223.2,40.8]
[1736910699277,3.63214846,3223.3,3223.2,40.8]
[1736910699472,3.32176846,3223.3,3222.8,2.94803006]
[1736910699677,0.31041,3222.9,3222.8,2.44963006]
[1736910699877,0.31044,3222.6,3222.5,3.90123006]
[1736910700176,3.34939895,3222.9,3222.5,3.90123006]
[1736910700485,0.31044,3222.6,3222.5,3.90123006]
[1736910700877,0.31044,3222.6,3222.5,44.70123006]
[1736910701278,0.31044,3222.6,3222.5,44.20163006]
[1736910701584,0.31044,3222.6,3222.5,41.2984]
[1736910701777,0.31044,3222.6,3222.5,40.8]
[1736910701988,3.69985089,3222.6,3222.5,40.8]
[1736910703981,6.90765089,3222.6,3222.5,40.8]
[1736910704781,3.2078,3223.0,3222.5,43.24963006]
[1736910705087,0.31043,3222.7,3222.6,0.9717]
[1736910705882,0.31041,3222.9,3222.6,0.9717]
[1736910706090,6.58479276,3223.0,3222.6,0.9717]
[1736910706091,0.31042,3222.8,3222.6,0.9717]
[1736910706291,0.31042,3222.8,3222.7,0.4542]
[1736910706477,0.31042,3222.8,3222.7,41.2542]
[1736910706889,6.58479276,3223.0,3222.7,41.2542]
[1736910707089,3.2078,3223.0,3222.9,2.44963006]
[1736910707484,3.5182,3223.0,3222.9,2.44963006]
[1736910708595,3.2078,3223.0,3222.9,2.44963006]
[1736910709290,3.2078,3223.0,3222.9,2.76004006]
[1736910709480,0.4642,3223.6,3222.9,2.44963006]
[1736910709795,3.79752327,3223.2,3222.9,2.44963006]
[1736910710185,0.31039,3223.2,3222.9,2.44963006]
[1736910710991,0.3104,3223.1,3222.9,2.44963006]
[1736910711983,3.50569025,3223.5,3222.9,2.44963006]
[1736910712186,0.3104,3223.1,3222.9,2.44963006]
[1736910712592,0.3104,3223.0,3222.9,2.44963006]
[1736910712895,0.3104,3223.1,3222.9,2.44963006]
[1736910714995,0.3104,3223.0,3222.9,2.44963006]
[1736910715384,0.3104,3223.0,3222.7,44.462]
[1736910715987,0.3104,3223.0,3222.7,44.77243]
[1736910716996,3.77387852,3223.2,3222.7,44.462]
[1736910717596,0.31041,3223.0,3222.7,44.77243]
[1736910718195,3.77387852,3223.2,3222.7,44.77243]
[1736910718897,0.31042,3222.9,3222.7,44.77243]
[1736910719694,3.77387852,3223.2,3222.7,44.462]
[1736910719895,0.3104,3223.1,3222.8,0.31042]
[1736910720091,0.4642,3223.6,3223.2,0.31038]
[1736910720291,0.31036,3223.6,3223.4,2.76000006]
[1736910720499,0.31039,3223.2,3223.1,2.44963006]
[1736910720697,0.3104,3223.1,3222.9,0.31041]
[1736910721087,0.4704,3223.6,3222.8,2.76005006]
[1736910721397,0.3104,3223.1,3222.9,0.31041]
[1736910722598,0.31381712,3223.1,3222.9,0.31041]
[1736910723498,0.00341712,3223.1,3223.0,0.3104]
[1736910723799,0.00341712,3223.1,3222.8,2.44963006]
[1736910723998,0.31381712,3223.1,3222.9,0.31041]
[1736910725394,0.00341712,3223.1,3223.0,0.3104]
[1736910726296,0.00341712,3223.1,3223.0,41.1104]
[1736910726601,3.6962,3224.1,3224.0,0.31031]
[1736910726795,3.2078,3224.1,3224.0,0.31031]
[1736910727196,3.2078,3224.1,3224.0,40.8]
[1736910727393,8.5181,3224.1,3224.0,40.8]
[1736910727597,0.31038,3223.3,3223.1,0.31039]
[1736910727901,0.77619,3223.2,3223.0,3.5182]
[1736910728499,0.77619,3223.2,3223.1,40.8]
[1736910729700,0.4658,3223.2,3223.1,40.8]
[1736910730299,0.4658,3223.2,3223.1,41.1104]
[1736910730898,0.77619,3223.2,3223.1,40.8]
[1736910731513,0.4658,3223.2,3223.1,40.8]
[1736910731713,0.4658,3223.2,3223.1,41.1104]
[1736910732122,0.4658,3223.2,3223.1,40.8]
[1736910732821,0.4658,3223.2,3223.1,41.1104]
[1736910733215,0.4658,3223.2,3223.1,40.8]
[1736910738122,0.4658,3223.2,3223.1,41.1104]
[1736910738524,0.31037,3223.4,3223.2,0.31038]
[1736910738725,0.31037,3223.4,3223.1,41.11039]
[1736910739324,0.462,3223.5,3223.1,41.11039]
[1736910739728,0.31037,3223.4,3223.1,41.11039]
[1736910744829,3.6698,3223.5,3223.1,41.11039]
[1736910745042,0.31039,3223.2,3223.1,40.8]
[1736910745222,3.34428262,3223.3,3222.8,2.44963006]
[1736910745535,3.2078,3223.5,3223.4,0.31037]
[1736910745734,0.9594,3224.0,3223.4,43.24963006]
[1736910745935,0.9594,3224.0,3223.9,0.31032]
[1736910746233,3.51120345,3224.4,3224.3,0.31028]
[1736910746430,0.31026,3224.6,3224.3,0.31028]
[1736910746730,0.4816,3224.5,3224.4,40.8]
[1736910747431,0.4816,3224.5,3224.4,41.11027]
[1736910747632,4.07162366,3224.6,3224.4,40.8]
[1736910747836,4.07162366,3224.6,3224.5,0.31026]
[1736910748029,4.07162366,3224.6,3224.4,40.8]
[1736910748434,4.07162366,3224.6,3224.5,0.31026]
[1736910748841,4.07162366,3224.6,3224.4,40.8]
[1736910749536,4.07162366,3224.6,3224.4,41.11027]
[1736910751333,4.07162366,3224.6,3224.5,0.31026]
[1736910751833,3.59382366,3224.6,3224.5,0.31026]
[1736910752038,3.2078,3224.7,3224.6,0.31025]
[1736910752535,0.4816,3225.1,3224.4,44.52563006]